fUSD/lending_fUSD_20251001
["ID","MTS","AMOUNT","RATE_DAILY","PERIOD"]
[388791214,1759362640841,-500.0,0.00021917,2]
[388791216,1759362640852,-1803.38,0.00021917,2]
[388791218,1759362640863,-500.0,0.00021917,2]
[388791220,1759362640873,-500.0,0.00021917,2]
[388791222,1759362640884,-521.68,0.00021917,2]
[388791224,1759362640894,-2138.53,0.00021917,2]
[388791226,1759362640905,-500.0,0.00021917,2]
[388791228,1759362640916,-500.0,0.00021917,2]
[388791230,1759362640926,-500.0,0.00021917,2]
[388791232,1759362640936,-3388.62,0.00021917,2]
[388791234,1759362640947,-500.0,0.00021917,2]
[388791236,1759362640957,-4468.6,0.00021917,2]
[388791239,1759362640968,-2921.93,0.00021917,2]
[388791241,1759362640979,-6005.72,0.00021917,2]
[388791243,1759362640989,-1619.46,0.00021917,2]
[388791245,1759362640999,-4263.18,0.00021917,2]
[388791247,1759362641010,-596.16,0.00021917,2]
[388791249,1759362641020,-500.0,0.00021917,2]
[388791251,1759362641030,-500.0,0.00021917,2]
[388791253,1759362641040,-500.0,0.00021917,2]
[388791255,1759362641050,-500.0,0.00021917,2]
[388791257,1759362641060,-500.0,0.00021917,2]
[388791259,1759362641071,-543.84,0.00021917,2]
[388791261,1759362641081,-500.0,0.00021917,2]
[388791263,1759362641091,-2290.71,0.00021917,2]
[388791265,1759362641101,-500.0,0.00021917,2]
[388791267,1759362641112,-1679.55,0.00021917,2]
[388791269,1759362641122,-2497.92,0.00021917,2]
[388791271,1759362641132,-500.0,0.00021917,2]
[388791273,1759362641142,-905.43,0.00021917,2]
[388791275,1759362641153,-1319.16,0.00021917,2]
[388791277,1759362641163,-500.0,0.00021917,2]
[388791279,1759362641173,-346.61837525,0.00021917,2]
[388791281,1759362641184,-500.0,0.00021917,2]
[388791283,1759362641194,-500.0,0.00021917,2]
[388791285,1759362641205,-500.0,0.00021917,2]
[388791287,1759362641215,-500.0,0.00021917,2]
[388791290,1759362641226,-2883.28,0.00021917,2]
[388791292,1759362641237,-1862.48,0.00021917,2]
[388791294,1759362641247,-500.0,0.00021917,2]
[388791295,1759362641257,-1046.15,0.00021917,2]
[388791297,1759362641266,-5973.32,0.00021917,2]
[388791299,1759362641276,-7710.0,0.00021917,2]
[388791301,1759362641285,-500.0,0.00021917,2]
[388791303,1759362641295,-3390.31,0.00021917,2]
[388791305,1759362641305,-500.0,0.00021917,2]
[388791307,1759362641315,-500.0,0.00021917,2]
[388791310,1759362641325,-500.0,0.00021917,2]
[388791312,1759362641336,-684.51,0.00021917,2]
[388791314,1759362641346,-798.36,0.00021917,2]
[388791316,1759362641356,-877.57,0.00021917,2]
[388791318,1759362641366,-6908.38,0.00021917,2]
[388791320,1759362641377,-1461.45,0.00021917,2]
[388791322,1759362641387,-500.0,0.00021917,2]
[388791324,1759362641398,-500.0,0.00021917,2]
[388791326,1759362641410,-500.0,0.00021917,2]
[388791328,1759362641420,-620.57,0.00021917,2]
[388791330,1759362641431,-1097.13,0.00021917,2]
[388791332,1759362641442,-2034.39,0.00021917,2]
[388791334,1759362641452,-967.51,0.00021917,2]
[388791336,1759362641462,-500.0,0.00021917,2]
[388791338,1759362641472,-500.0,0.00021917,2]
[388791340,1759362641484,-500.0,0.00021917,2]
[388791342,1759362641494,-90.42607072,0.00021917,2]
[388791344,1759362641509,-6051.22392928,0.00021917,2]
[388791346,1759362641519,-2372.9,0.00021917,2]
[388791348,1759362641529,-2138.66,0.00021917,2]
[388791350,1759362641540,-617.05,0.00021917,2]
[388791353,1759362641550,-2312.38,0.00021917,2]
[388791355,1759362641560,-500.0,0.00021917,2]
[388791357,1759362641569,-500.0,0.00021917,2]
[388791359,1759362641579,-500.0,0.00021917,2]
[388791361,1759362641589,-500.0,0.00021917,2]
[388791363,1759362641600,-4709.96,0.00021917,2]
[388791365,1759362641609,-500.0,0.00021917,2]
[388791367,1759362641619,-1790.23497735,0.00021917,2]
[388791683,1759362644190,-268.39502265,0.00021917,2]
[388791685,1759362644200,-755.86,0.00021917,2]
[388791687,1759362644210,-5644.91,0.00021917,2]
[388791689,1759362644220,-621.85,0.00021917,2]
[388791691,1759362644230,-500.0,0.00021917,2]
[388791693,1759362644239,-7452.65,0.00021917,2]
[388791695,1759362644249,-500.12,0.00021917,2]
[388791697,1759362644258,-500.0,0.00021917,2]
[388791699,1759362644268,-4657.49,0.00021917,2]
[388791701,1759362644277,-1052.18,0.00021917,2]
[388791703,1759362644287,-500.0,0.00021917,2]
[388791705,1759362644296,-4399.55,0.00021917,2]
[388791707,1759362644306,-500.0,0.00021917,2]
[388791709,1759362644316,-500.0,0.00021917,2]
[388791711,1759362644325,-500.0,0.00021917,2]
[388791713,1759362644335,-500.0,0.00021917,2]
[388791715,1759362644345,-500.0,0.00021917,2]
[388791717,1759362644355,-500.0,0.00021917,2]
[388791719,1759362644364,-500.0,0.00021917,2]
[388791721,1759362644374,-500.0,0.00021917,2]
[388791723,1759362644384,-500.0,0.00021917,2]
[388791725,1759362644393,-500.0,0.00021917,2]
[388791727,1759362644406,-500.0,0.00021917,2]
[388791729,1759362644416,-500.0,0.00021917,2]
[388791731,1759362644426,-500.0,0.00021917,2]
[388791733,1759362644435,-500.0,0.00021917,2]
[388791735,1759362644446,-500.0,0.00021917,2]
[388791737,1759362644456,-544.01227444,0.00021917,2]
[388791740,1759362644467,-8025.23,0.00021917,2]
[388791741,1759362644479,-978.64,0.00021917,2]
[388791744,1759362644489,-2732.62,0.00021917,2]
[388791745,1759362644499,-276.58608791,0.00021917,2]
[388791747,1759362644509,-3129.91,0.00021917,2]
[388791749,1759362644519,-983.89,0.00021917,2]
[388791751,1759362644529,-1638.48,0.00021917,2]
[388791753,1759362644538,-500.0,0.00021917,2]
[388791755,1759362644548,-500.0,0.00021917,2]
[388791757,1759362644558,-676.2,0.00021917,2]
[388791759,1759362644567,-531.18,0.00021917,2]
[388791761,1759362644577,-500.0,0.00021917,2]
[388791763,1759362644587,-5607.44,0.00021917,2]
[388791765,1759362644596,-6358.04,0.00021917,2]
[388791768,1759362644607,-500.0,0.00021917,2]
[388791769,1759362644617,-1081.69,0.00021917,2]
[388791771,1759362644627,-5348.87,0.00021917,2]
[388791773,1759362644636,-2542.43,0.00021917,2]
[388791775,1759362644645,-30575.98,0.00021917,2]
[388791778,1759362644655,-500.0,0.00021917,2]
[388791780,1759362644666,-480.9814663,0.00021917,2]
[388791782,1759362644676,-370.21358937,0.00021917,2]
[388791784,1759362644686,-500.0,0.00021917,2]
[388791786,1759362644696,-500.0,0.00021917,2]
[388791788,1759362644706,-500.0,0.00021917,2]
[388791790,1759362644716,-500.0,0.00021917,2]
[388791792,1759362644726,-500.0,0.00021917,2]
[388791794,1759362644736,-2099.83,0.00021917,2]
[388791796,1759362644746,-323.4,0.00021917,2]
[388791798,1759362644756,-2516.56,0.00021917,2]
[388791800,1759362644766,-500.0,0.00021917,2]
[388791802,1759362644776,-500.0,0.00021917,2]
[388791804,1759362644788,-1844.0,0.00021917,2]
[388791806,1759362644798,-372.96998512,0.00021917,2]
[388791808,1759362644807,-2329.11,0.00021917,2]
[388791810,1759362644817,-754.37,0.00021917,2]
[388791812,1759362644827,-1959.23,0.00021917,2]
[388791814,1759362644836,-3137.78,0.00021917,2]
[388791816,1759362644846,-500.0,0.00021917,2]
[388791818,1759362644855,-2245.26,0.00021917,2]
[388791820,1759362644865,-2019.16,0.00021917,2]
[388791822,1759362644874,-514.87,0.00021917,2]
[388791824,1759362644883,-6197.75,0.00021917,2]
[388791826,1759362644893,-500.0,0.00021917,2]
[388791828,1759362644903,-1664.22,0.00021917,2]
[388791830,1759362644913,-925.37,0.00021917,2]
[388791832,1759362644924,-598.88,0.00021917,2]
[388791834,1759362644934,-10447.97,0.00021917,2]
[388791836,1759362644943,-426.68,0.00021917,2]
[388791838,1759362644953,-1570.67,0.00021917,2]
[388791840,1759362644962,-6405.86,0.00021917,2]
[388791842,1759362644972,-2900.3,0.00021917,2]
[388791844,1759362644981,-500.0,0.00021917,2]
[388791847,1759362644991,-2560.37,0.00021917,2]
[388791849,1759362645001,-790.09,0.00021917,2]
[388791851,1759362645010,-500.0,0.00021917,2]
[388791853,1759362645020,-1361.64,0.00021917,2]
[388791854,1759362645029,-500.0,0.00021917,2]
[388791857,1759362645039,-4942.17,0.00021917,2]
[388791858,1759362645048,-1046.7811665,0.00021917,2]
[388791861,1759362645066,-5470.6388335,0.00021917,2]
[388791863,1759362645075,-8359.17,0.00021917,2]
[388791865,1759362645085,-1325.66,0.00021917,2]
[388791867,1759362645094,-805.7,0.00021917,2]
[388791869,1759362645104,-834.03,0.00021917,2]
[388791871,1759362645113,-500.0,0.00021917,2]
[388791873,1759362645123,-2717.08,0.00021917,2]
[388791875,1759362645132,-1535.59,0.00021917,2]
[388791877,1759362645141,-3013.31,0.00021917,2]
[388791879,1759362645150,-500.0,0.00021917,2]
[388791882,1759362645159,-7631.39,0.00021917,2]
[388791884,1759362645170,-613.48,0.00021917,2]
[388791885,1759362645181,-500.0,0.00021917,2]
[388791887,1759362645189,-1193.9511665,0.00021917,2]
[388791890,1759362645201,-1767.8388335,0.00021917,2]
[388791892,1759362645211,-1455.75262286,0.00021917,2]
[388791894,1759362645223,-2019.05799796,0.00021917,2]
[388791898,1759362645254,-180.50937918,0.00021917,2]
[388791900,1759362645263,-1349.46,0.00021917,2]
[388791902,1759362645272,-754.86,0.00021917,2]
[388791905,1759362645282,-5909.65,0.00021917,2]
[388791906,1759362645291,-3562.23,0.00021917,2]
[388791908,1759362645301,-2116.81,0.00021917,2]
[388791911,1759362645310,-506.94,0.00021917,2]
[388791913,1759362645319,-500.0,0.00021917,2]
[388791915,1759362645328,-3199.27,0.00021917,2]
[388791917,1759362645337,-500.0,0.00021917,2]
[388791919,1759362645347,-2061.40851641,0.00021917,2]
[388791921,1759362645358,-708.67148359,0.00021917,2]
[388791923,1759362645367,-156.17776168,0.00021917,2]
[388791925,1759362645378,-253.75974854,0.00021917,2]
[388791927,1759362645389,-1212.89412702,0.00021917,2]
[388791929,1759362645405,-3003.51441013,0.00021917,2]
[388791932,1759362645416,-2689.47395263,0.00021917,2]
[388791934,1759362645426,-2762.91,0.00021917,2]
[388791936,1759362645435,-6984.67,0.00021917,2]
[388791937,1759362645445,-958.14,0.00021917,2]
[388791939,1759362645454,-500.0,0.00021917,2]
[388791942,1759362645464,-500.0,0.00021917,2]
[388791943,1759362645473,-229.9094989,0.00021917,2]
[388791946,1759362645485,-2066.48,0.00021917,2]
[388791948,1759362645495,-500.0,0.00021917,2]
[388791950,1759362645504,-500.0,0.00021917,2]
[388791952,1759362645513,-616.00093866,0.00021917,2]
[388791954,1759362645523,-500.0,0.00021917,2]
[388791956,1759362645532,-1692.55,0.00021917,2]
[388791958,1759362645541,-844.55,0.00021917,2]
[388791960,1759362645550,-500.0,0.00021917,2]
[388791962,1759362645559,-2704.99,0.00021917,2]
[388791964,1759362645569,-3042.27,0.00021917,2]
[388791966,1759362645578,-500.0,0.00021917,2]
[388791967,1759362645587,-501.96,0.00021917,2]
[388791970,1759362645597,-1570.24,0.00021917,2]
[388791972,1759362645606,-500.0,0.00021917,2]
[388791974,1759362645615,-2957.82,0.00021917,2]
[388791976,1759362645624,-2112.82,0.00021917,2]
[388791978,1759362645634,-1693.04,0.00021917,2]
[388791979,1759362645646,-2144.41,0.00021917,2]
[388791982,1759362645656,-500.0,0.00021917,2]
[388791984,1759362645666,-1711.11,0.00021917,2]
[388791985,1759362645676,-500.0,0.00021917,2]
[388791988,1759362645686,-500.0,0.00021917,2]
[388791990,1759362645695,-609.35,0.00021917,2]
[388791992,1759362645705,-500.0,0.00021917,2]
[388791994,1759362645714,-500.0,0.00021917,2]
[388791996,1759362645723,-6851.58,0.00021917,2]
[388791998,1759362645732,-799.42,0.00021917,2]
[388792000,1759362645741,-766.89,0.00021917,2]
[388792002,1759362645751,-500.0,0.00021917,2]
[388792014,1759362645861,-500.0,0.00021917,2]
[388792016,1759362645871,-1980.75,0.00021917,2]
[388792018,1759362645879,-500.0,0.00021917,2]
[388792020,1759362645889,-3590.55,0.00021917,2]
[388792022,1759362645898,-546.04,0.00021917,2]
[388792024,1759362645908,-546.04,0.00021917,2]
[388792026,1759362645917,-500.0,0.00021917,2]
[388792028,1759362645926,-500.0,0.00021917,2]
[388792030,1759362645935,-500.0,0.00021917,2]
[388792032,1759362645944,-1941.89,0.00021917,2]
[388792033,1759362645953,-755.74,0.00021917,2]
[388792036,1759362645963,-500.0,0.00021917,2]
[388792037,1759362645972,-1294.23,0.00021917,2]
[388792039,1759362645981,-4714.76,0.00021917,2]
[388792042,1759362645990,-3225.33,0.00021917,2]
[388792044,1759362645999,-13701.78,0.00021917,2]
[388792045,1759362646009,-1519.63,0.00021917,2]
[388792047,1759362646018,-893.0,0.00021917,2]
[388792049,1759362646027,-1753.11,0.00021917,2]
[388792051,1759362646036,-4944.15,0.00021917,2]
[388792053,1759362646045,-2647.17,0.00021917,2]
[388792055,1759362646054,-537.34,0.00021917,2]
[388792057,1759362646063,-786.03,0.00021917,2]
[388792060,1759362646074,-500.0,0.00021917,2]
[388792062,1759362646083,-5047.54,0.00021917,2]
[388792064,1759362646092,-500.0,0.00021917,2]
[388792066,1759362646101,-1109.7,0.00021917,2]
[388792068,1759362646110,-500.0,0.00021917,2]
[388792070,1759362646119,-12839.4,0.00021917,2]
[388792072,1759362646128,-500.0,0.00021917,2]
[388792074,1759362646137,-1080.58,0.00021917,2]
[388792076,1759362646146,-3927.97,0.00021917,2]
[388792078,1759362646155,-500.0,0.00021917,2]
[388792080,1759362646164,-2440.26,0.00021917,2]
[388792082,1759362646174,-1726.18,0.00021917,2]
[388792084,1759362646183,-3774.25,0.00021917,2]
[388792086,1759362646191,-1192.69,0.00021917,2]
[388792088,1759362646200,-2448.5,0.00021917,2]
[388792090,1759362646209,-500.0,0.00021917,2]
[388792092,1759362646219,-500.0,0.00021917,2]
[388792094,1759362646228,-1022.92,0.00021917,2]
[388792095,1759362646238,-500.0,0.00021917,2]
[388792098,1759362646248,-2203.11,0.00021917,2]
[388792100,1759362646257,-2844.39,0.00021917,2]
[388792102,1759362646266,-1170.62,0.00021917,2]
[388792105,1759362646275,-500.0,0.00021917,2]
[388792107,1759362646285,-4369.62,0.00021917,2]
[388792109,1759362646296,-500.0,0.00021917,2]
[388792111,1759362646305,-500.0,0.00021917,2]
[388792113,1759362646314,-2902.27,0.00021917,2]
[388792115,1759362646323,-500.0,0.00021917,2]
[388792117,1759362646332,-2156.29,0.00021917,2]
[388792118,1759362646342,-500.0,0.00021917,2]
[388792119,1759362646351,-500.0,0.00021917,2]
[388792120,1759362646360,-500.0,0.00021917,2]
[388792122,1759362646369,-1533.21,0.00021917,2]
[388792124,1759362646379,-15165.03,0.00021917,2]
[388792126,1759362646388,-6249.12,0.00021917,2]
[388792128,1759362646397,-4255.09,0.00021917,2]
[388792130,1759362646411,-7888.21,0.00021917,2]
[388792132,1759362646420,-500.0,0.00021917,2]
[388792133,1759362646430,-377.54019118,0.00021917,2]
[388792135,1759362646440,-500.0,0.00021917,2]
[388792137,1759362646450,-11707.92,0.00021917,2]
[388792140,1759362646459,-500.0,0.00021917,2]
[388792142,1759362646469,-6236.58,0.00021917,2]
[388792144,1759362646480,-500.0,0.00021917,2]
[388792146,1759362646490,-500.0,0.00021917,2]
[388792148,1759362646499,-10185.58,0.00021917,2]
[388792150,1759362646508,-7746.7,0.00021917,2]
[388792152,1759362646518,-3678.61,0.00021917,2]
[388792153,1759362646527,-708.96566586,0.00021917,2]
[388792156,1759362646541,-3831.73376318,0.00021917,2]
[388792158,1759362646552,-1935.98057096,0.00021917,2]
[388792160,1759362646561,-1729.41,0.00021917,2]
[388792162,1759362646570,-500.0,0.00021917,2]
[388792164,1759362646579,-500.0,0.00021917,2]
[388792166,1759362646589,-1262.89,0.00021917,2]
[388792168,1759362646598,-1775.36,0.00021917,2]
[388792170,1759362646607,-2735.11,0.00021917,2]
[388792172,1759362646616,-3184.89,0.00021917,2]
[388792174,1759362646626,-3394.33,0.00021917,2]
[388792176,1759362646635,-500.0,0.00021917,2]
[388792178,1759362646644,-6422.93,0.00021917,2]
[388792180,1759362646654,-500.0,0.00021917,2]
[388792182,1759362646663,-2423.95,0.00021917,2]
[388792184,1759362646672,-572.3,0.00021917,2]
[388792186,1759362646681,-783.2,0.00021917,2]
[388792188,1759362646691,-500.0,0.00021917,2]
[388792190,1759362646700,-500.0,0.00021917,2]
[388792192,1759362646710,-500.0,0.00021917,2]
[388792194,1759362646719,-534.21,0.00021917,2]
[388792196,1759362646728,-288.13947141,0.00021917,2]
[388792198,1759362646737,-7212.29,0.00021917,2]
[388792200,1759362646747,-2916.36,0.00021917,2]
[388792202,1759362646756,-525.92,0.00021917,2]
[388792205,1759362646765,-2284.87,0.00021917,2]
[388792207,1759362646775,-959.21,0.00021917,2]
[388792208,1759362646784,-4053.05,0.00021917,2]
[388792210,1759362646793,-691.6,0.00021917,2]
[388792212,1759362646802,-500.0,0.00021917,2]
[388792214,1759362646811,-1060.61,0.00021917,2]
[388792216,1759362646820,-500.0,0.00021917,2]
[388792218,1759362646829,-500.0,0.00021917,2]
[388792220,1759362646839,-4229.97,0.00021917,2]
[388792222,1759362646848,-500.0,0.00021917,2]
[388792224,1759362646858,-517.87,0.00021917,2]
[388792226,1759362646867,-500.0,0.00021917,2]
[388792228,1759362646877,-500.0,0.00021917,2]
[388792230,1759362646886,-1419.72,0.00021917,2]
[388792232,1759362646896,-1834.36,0.00021917,2]
[388792234,1759362646905,-22460.71,0.00021917,2]
[388792236,1759362646914,-794.78,0.00021917,2]
[388792238,1759362646923,-500.0,0.00021917,2]
[388792240,1759362646932,-500.0,0.00021917,2]
[388792242,1759362646942,-3216.47,0.00021917,2]
[388792244,1759362646951,-500.0,0.00021917,2]
[388792246,1759362646960,-500.0,0.00021917,2]
[388792248,1759362646970,-782.75,0.00021917,2]
[388792250,1759362646979,-500.0,0.00021917,2]
[388792252,1759362646988,-4670.23,0.00021917,2]
[388792254,1759362646996,-11258.74,0.00021917,2]
[388792256,1759362647006,-500.0,0.00021917,2]
[388792258,1759362647015,-500.0,0.00021917,2]
[388792260,1759362647024,-500.0,0.00021917,2]
[388792262,1759362647034,-22932.32,0.00021917,2]
[388792264,1759362647044,-1035.68,0.00021917,2]
[388792266,1759362647053,-500.0,0.00021917,2]
[388792269,1759362647063,-4688.79,0.00021917,2]
[388792271,1759362647072,-1605.2,0.00021917,2]
[388792273,1759362647081,-745.17,0.00021917,2]
[388792275,1759362647091,-2927.17,0.00021917,2]
[388792277,1759362647100,-500.0,0.00021917,2]
[388792279,1759362647110,-500.0,0.00021917,2]
[388792281,1759362647119,-500.0,0.00021917,2]
[388792283,1759362647128,-1275.32,0.00021917,2]
[388792285,1759362647137,-1106.74,0.00021917,2]
[388792287,1759362647146,-1282.84,0.00021917,2]
[388792289,1759362647155,-5000.0,0.00021918,2]
[388792290,1759362647164,-150.0,0.00021922,2]
[388792292,1759362647173,-150.0,0.00021922,2]
[388792294,1759362647182,-500.0,0.00021922,2]
[388792296,1759362647191,-150.0,0.00021922,2]
[388792299,1759362647201,-150.0,0.00021922,2]
[388792301,1759362647210,-150.0,0.00021922,2]
[388792303,1759362647219,-150.0,0.00021922,2]
[388792304,1759362647228,-150.0,0.00021922,2]
[388792306,1759362647238,-150.0,0.00021922,2]
[388792308,1759362647247,-150.0,0.00021922,2]
[388792310,1759362647257,-150.0,0.00021922,2]
[388792312,1759362647267,-747.0,0.00021922,2]
[388792314,1759362647276,-150.0,0.00021922,2]
[388792316,1759362647285,-150.0,0.00021922,2]
[388792318,1759362647293,-500.0,0.00021922,2]
[388792320,1759362647303,-150.0,0.00021922,2]
[388792322,1759362647311,-150.0,0.00021922,2]
[388792324,1759362647321,-150.0,0.00021922,2]
[388792326,1759362647330,-150.0,0.00021922,2]
[388792328,1759362647339,-150.0,0.00021922,2]
[388792330,1759362647348,-150.0,0.00021922,2]
[388792332,1759362647357,-150.0,0.00021922,2]
[388792334,1759362647366,-500.0,0.00021922,2]
[388792336,1759362647375,-150.0,0.00021922,2]
[388792338,1759362647385,-500.0,0.00021922,2]
[388792340,1759362647395,-150.0,0.00021922,2]
[388792342,1759362647408,-657.87,0.00021945,30]
[388792344,1759362647417,-1214.69594654,0.00022,2]
[388792346,1759362647427,-2755.92415771,0.00022,2]
[388792348,1759362647436,-3399.0,0.00022018,2]
[388792350,1759362647447,-2045.0,0.00022018,2]
[388792352,1759362647457,-787.0,0.00022018,2]
[388792354,1759362647467,-1264.0,0.00022018,2]
[388792356,1759362647478,-569.0,0.00022018,2]
[388792358,1759362647487,-1306.0,0.00022018,2]
[388792360,1759362647496,-603.0,0.00022018,2]
[388792362,1759362647505,-1584.0,0.00022018,2]
[388792364,1759362647515,-4109.0,0.00022018,2]
[388792366,1759362647529,-151.0,0.00022034,2]
[388792368,1759362647538,-173.88,0.00022036,2]
[388792370,1759362647548,-1636.0,0.00022039,2]
[388792372,1759362647557,-1271.76,0.0002205,2]
[388792374,1759362647569,-286.9628837,0.00022052,2]
[388792376,1759362647582,-1214.69594654,0.00022091,2]
[388792378,1759362647592,-2755.92415771,0.00022091,2]
[388792380,1759362647601,-154.64282746,0.00022091,2]
[388792382,1759362647610,-600.0,0.0002211,2]
[388792384,1759362647620,-8026.1766452,0.0002213,2]
[388792386,1759362647629,-885.8448827,0.0002213,2]
[388792388,1759362647638,-1000.0,0.00022135,2]
[388792390,1759362647647,-582.04720901,0.00022158,2]
[388792392,1759362647657,-2087.9139689,0.00022159,2]
[388792394,1759362647667,-300.0,0.0002216,2]
[388792396,1759362647676,-250.0,0.0002216,2]
[388792398,1759362647685,-195.0,0.0002216,2]
[388792400,1759362647694,-150.0,0.00022164,4]
[388792402,1759362647703,-304.27145336,0.00022173,2]
[388792404,1759362647712,-500.0,0.00022173,2]
[388792406,1759362647722,-500.0,0.00022173,2]
[388792408,1759362647731,-500.0,0.00022173,2]
[388792410,1759362647740,-500.0,0.00022173,2]
[388792412,1759362647750,-500.0,0.00022173,2]
[388792414,1759362647759,-500.0,0.00022173,2]
[388792416,1759362647768,-500.0,0.00022173,2]
[388792418,1759362647777,-500.0,0.00022173,2]
[388792420,1759362647786,-500.0,0.00022173,2]
[388792422,1759362647796,-500.0,0.00022173,2]
[388792424,1759362647805,-500.0,0.00022173,2]
[388792426,1759362647814,-500.0,0.00022173,2]
[388792428,1759362647824,-500.0,0.00022173,2]
[388792430,1759362647833,-1214.69594654,0.00022182,2]
[388792432,1759362647843,-2755.92415771,0.00022182,2]
[388792434,1759362647852,-1240.47,0.0002219,2]
[388792436,1759362647863,-857.09,0.0002219,2]
[388792438,1759362647871,-696.07,0.0002219,2]
[388792440,1759362647880,-500.0,0.0002219,2]
[388792442,1759362647889,-500.0,0.0002219,2]
[388792444,1759362647899,-1089.24,0.0002219,2]
[388792446,1759362647908,-500.0,0.0002219,2]
[388792448,1759362647917,-1076.76,0.0002219,2]
[388792450,1759362647926,-500.0,0.0002219,2]
[388792452,1759362647936,-500.0,0.0002219,2]
[388792454,1759362647945,-500.0,0.0002219,2]
[388792456,1759362647954,-500.0,0.0002219,2]
[388792458,1759362647964,-500.0,0.0002219,2]
[388792460,1759362647972,-500.0,0.0002219,2]
[388792461,1759362647981,-500.0,0.0002219,2]
[388792463,1759362647991,-809.26,0.0002219,2]
[388792465,1759362648000,-500.0,0.0002219,2]
[388792467,1759362648015,-500.0,0.0002219,2]
[388792469,1759362648024,-2040.45,0.0002219,2]
[388792471,1759362648034,-1105.25,0.0002219,2]
[388792473,1759362648043,-500.0,0.0002219,2]
[388792476,1759362648059,-777.51,0.0002219,2]
[388792478,1759362648068,-2071.96,0.0002219,2]
[388792480,1759362648077,-500.0,0.0002219,2]
[388792482,1759362648086,-500.0,0.0002219,2]
[388792484,1759362648095,-205.80909529,0.0002219,2]
[388792486,1759362648109,-500.0,0.0002219,2]
[388792488,1759362648118,-500.0,0.0002219,2]
[388792490,1759362648128,-500.0,0.0002219,2]
[388792492,1759362648137,-755.54,0.0002219,2]
[388792494,1759362648146,-3196.11,0.0002219,2]
[388792496,1759362648155,-3199.44,0.0002219,2]
[388792498,1759362648165,-1721.96,0.0002219,2]
[388792500,1759362648175,-11237.17,0.0002219,2]
[388792502,1759362648184,-9811.42,0.0002219,2]
[388792504,1759362648193,-7990.43,0.0002219,2]
[388792506,1759362648202,-5765.4,0.0002219,2]
[388792508,1759362648211,-5196.97,0.0002219,2]
[388792510,1759362648223,-2508.04,0.0002219,2]
[388792512,1759362648233,-2135.37,0.0002219,2]
[388792514,1759362648243,-12105.27,0.0002219,2]
[388792516,1759362648252,-2745.66,0.0002219,2]
[388792519,1759362648272,-7560.14,0.0002219,2]
[388792521,1759362648282,-863.04,0.0002219,2]
[388792523,1759362648291,-2181.49,0.0002219,2]
[388792525,1759362648301,-2956.51,0.0002219,2]
[388792527,1759362648310,-500.0,0.00022191,2]
[388792529,1759362648320,-500.0,0.00022191,2]
[388792531,1759362648329,-500.0,0.00022191,2]
[388792533,1759362648339,-500.0,0.00022191,2]
[388792535,1759362648349,-296.6,0.00022191,2]
[388792537,1759362648358,-788.75,0.00022191,2]
[388792539,1759362648368,-1230.76,0.00022191,2]
[388792541,1759362648377,-500.0,0.00022191,2]
[388792543,1759362648387,-500.0,0.00022191,2]
[388792545,1759362648397,-500.0,0.00022191,2]